fUST/lending_fUST_20250205
["ID","MTS","AMOUNT","RATE_DAILY","PERIOD"]
[351653991,1738689040682,-500.0,0.00016438,2]
[351653993,1738689040691,-506.13259056,0.00016438,2]
[351653994,1738689040700,-500.0,0.00016438,2]
[351653995,1738689040710,-500.0,0.00016438,2]
[351653996,1738689040720,-684.97,0.00016438,2]
[351653997,1738689040730,-500.0,0.00016438,2]
[351653998,1738689040739,-500.0,0.00016438,2]
[351653999,1738689040748,-500.0,0.00016438,2]
[351654000,1738689040758,-500.0,0.00016438,2]
[351654001,1738689040767,-1208.09,0.00016438,2]
[351654002,1738689040777,-327.26788206,0.00016438,2]
[351654003,1738689040786,-500.0,0.00016438,2]
[351654004,1738689040795,-500.0,0.00016438,2]
[351654005,1738689040805,-1222.5,0.00016438,2]
[351654006,1738689040814,-48318.18,0.00016438,2]
[351654007,1738689040823,-151.0,0.00016438,2]
[351654008,1738689040833,-1332.08,0.00016438,2]
[351654009,1738689040842,-151.0,0.00016438,2]
[351654010,1738689040852,-3189.4,0.00016438,2]
[351654011,1738689040862,-500.0,0.00016438,2]
[351654012,1738689040878,-500.0,0.00016438,2]
[351654013,1738689040887,-500.0,0.00016438,2]
[351654014,1738689040897,-500.0,0.00016438,2]
[351654015,1738689040908,-500.0,0.00016438,2]
[351654016,1738689040919,-500.0,0.00016438,2]
[351654017,1738689040929,-500.0,0.00016438,2]
[351654018,1738689040939,-500.0,0.00016438,2]
[351654019,1738689040949,-1745.71,0.00016438,2]
[351654020,1738689040961,-1621.85,0.00016438,2]
[351654021,1738689040971,-500.0,0.00016438,2]
[351654022,1738689040981,-500.0,0.00016438,2]
[351654023,1738689040990,-500.0,0.00016438,2]
[351654024,1738689041000,-500.0,0.00016438,2]
[351654025,1738689041010,-500.0,0.00016438,2]
[351654026,1738689041119,-507.86397755,0.00016438,2]
[351654027,1738689041131,-500.0,0.00016438,2]
[351654028,1738689041142,-500.0,0.00016438,2]
[351654029,1738689041152,-500.0,0.00016438,2]
[351654030,1738689041162,-1367.63,0.00016438,2]
[351654031,1738689041172,-500.0,0.00016438,2]
[351654032,1738689041182,-500.0,0.00016438,2]
[351654033,1738689041192,-500.0,0.00016438,2]
[351654034,1738689041201,-1124.53,0.00016438,2]
[351654035,1738689041211,-500.0,0.00016438,2]
[351654036,1738689041221,-500.0,0.00016438,2]
[351654037,1738689041231,-151.0,0.00016438,2]
[351654038,1738689041241,-151.0,0.00016438,2]
[351654039,1738689041250,-151.0,0.00016438,2]
[351654040,1738689041259,-500.0,0.00016438,2]
[351654041,1738689041269,-500.0,0.00016438,2]
[351654042,1738689041279,-1741.3,0.00016438,2]
[351654043,1738689041288,-500.0,0.00016438,2]
[351654044,1738689041298,-513.85094787,0.00016438,2]
[351654045,1738689041308,-2294.26,0.00016438,2]
[351654046,1738689041318,-500.0,0.00016438,2]
[351654047,1738689041328,-2294.26,0.00016438,2]
[351654048,1738689041337,-2294.26,0.00016438,2]
[351654049,1738689041347,-500.0,0.00016438,2]
[351654050,1738689041356,-2294.26,0.00016438,2]
[351654051,1738689041366,-2294.26,0.00016438,2]
[351654052,1738689041378,-2294.26,0.00016438,2]
[351654053,1738689041387,-2294.26,0.00016438,2]
[351654054,1738689041397,-2294.26,0.00016438,2]
[351654055,1738689041406,-2294.26,0.00016438,2]
[351654056,1738689041416,-2294.26,0.00016438,2]
[351654057,1738689041425,-1064.43,0.00016438,2]
[351654058,1738689041435,-2294.26,0.00016438,2]
[351654059,1738689041445,-2294.26,0.00016438,2]
[351654060,1738689041454,-638.32258185,0.00016438,2]
[351654061,1738689041464,-2294.26,0.00016438,2]
[351654062,1738689041474,-2294.26,0.00016438,2]
[351654063,1738689041483,-2294.26,0.00016438,2]
[351654064,1738689041492,-2294.26,0.00016438,2]
[351654065,1738689041502,-500.0,0.00016438,2]
[351654066,1738689041512,-2294.26,0.00016438,2]
[351654067,1738689041522,-2294.26,0.00016438,2]
[351654068,1738689041531,-2294.26,0.00016438,2]
[351654069,1738689041541,-512.72772952,0.00016438,2]
[351654070,1738689041551,-500.0,0.00016438,2]
[351654071,1738689041560,-2294.26,0.00016438,2]
[351654072,1738689041570,-2294.26,0.00016438,2]
[351654073,1738689041579,-500.0,0.00016438,2]
[351654074,1738689041588,-2294.26,0.00016438,2]
[351654075,1738689041598,-2294.26,0.00016438,2]
[351654076,1738689041608,-2294.27,0.00016438,2]
[351654077,1738689041619,-217.82537612,0.00016438,2]
[351654078,1738689041630,-500.0,0.00016438,2]
[351654079,1738689041639,-500.0,0.00016438,2]
[351654080,1738689041648,-500.43244295,0.00016438,2]
[351654081,1738689041658,-1445.15,0.00016438,2]
[351654082,1738689041667,-500.0,0.00016438,2]
[351654083,1738689041677,-500.0,0.00016438,2]
[351654084,1738689041686,-510.90131772,0.00016438,2]
[351654085,1738689041696,-1614.18,0.00016438,2]
[351654086,1738689041705,-284.789994,0.00016438,2]
[351654087,1738689041715,-500.0,0.00016438,2]
[351654088,1738689041724,-500.0,0.00016438,2]
[351654089,1738689041734,-500.0,0.00016438,2]
[351654090,1738689041744,-500.0,0.00016438,2]
[351654091,1738689041755,-500.0,0.00016438,2]
[351654092,1738689041764,-500.0,0.00016438,2]
[351654093,1738689041774,-500.0,0.00016438,2]
[351654094,1738689041784,-500.0,0.00016438,2]
[351654095,1738689041793,-500.0,0.00016438,2]
[351654096,1738689041803,-500.0,0.00016438,2]
[351654097,1738689041813,-507.72470008,0.00016438,2]
[351654098,1738689041823,-500.0,0.00016438,2]
[351654099,1738689041831,-500.0,0.00016438,2]
[351654100,1738689041841,-500.0,0.00016438,2]
[351654101,1738689041850,-500.0,0.00016438,2]
[351654102,1738689041860,-500.0,0.00016438,2]
[351654103,1738689041870,-4401.74,0.00016438,2]
[351654104,1738689041885,-744.03,0.00016438,2]
[351654105,1738689041895,-500.0,0.00016438,2]
[351654106,1738689041905,-1026.34,0.00016438,2]
[351654107,1738689041914,-500.0,0.00016438,2]
[351654108,1738689041925,-1026.34,0.00016438,2]
[351654109,1738689041935,-1026.34,0.00016438,2]
[351654110,1738689041944,-500.0,0.00016438,2]
[351654111,1738689041955,-1026.34,0.00016438,2]
[351654112,1738689041968,-1026.34,0.00016438,2]
[351654113,1738689041978,-1026.34,0.00016438,2]
[351654114,1738689041987,-1026.34,0.00016438,2]
[351654115,1738689041998,-1026.34,0.00016438,2]
[351654116,1738689042007,-1026.34,0.00016438,2]
[351654117,1738689042017,-1026.34,0.00016438,2]
[351654118,1738689042028,-1026.34,0.00016438,2]
[351654119,1738689042038,-1026.34,0.00016438,2]
[351654120,1738689042048,-1026.34,0.00016438,2]
[351654121,1738689042058,-1026.34,0.00016438,2]
[351654122,1738689042069,-1026.34,0.00016438,2]
[351654123,1738689042080,-1026.34,0.00016438,2]
[351654124,1738689042090,-1026.34,0.00016438,2]
[351654125,1738689042099,-1026.34,0.00016438,2]
[351654126,1738689042110,-1026.34,0.00016438,2]
[351654127,1738689042119,-500.0,0.00016438,2]
[351654128,1738689042132,-1026.34,0.00016438,2]
[351654129,1738689042142,-11880.55,0.00016438,2]
[351654130,1738689042151,-1026.34,0.00016438,2]
[351654131,1738689042161,-500.0,0.00016438,2]
[351654132,1738689042171,-1026.34,0.00016438,2]
[351654133,1738689042181,-1026.34,0.00016438,2]
[351654134,1738689042191,-1026.4617,0.00016438,2]
[351654135,1738689042200,-189.21202171,0.00016438,2]
[351654136,1738689042211,-500.0,0.00016438,2]
[351654137,1738689042221,-500.0,0.00016438,2]
[351654138,1738689042231,-500.0,0.00016438,2]
[351654139,1738689042241,-500.0,0.00016438,2]
[351654140,1738689042251,-500.0,0.00016438,2]
[351654141,1738689042261,-501.09861505,0.00016438,2]
[351654142,1738689042271,-1448.02,0.00016438,2]
[351654143,1738689042281,-500.0,0.00016438,2]
[351654144,1738689042292,-500.0,0.00016438,2]
[351654145,1738689042301,-500.0,0.00016438,2]
[351654146,1738689042311,-500.2,0.00016438,2]
[351654147,1738689042320,-151.0,0.00016438,2]
[351654148,1738689042330,-157.0,0.00016441,2]
[351654149,1738689042339,-157.0,0.00016441,2]
[351654150,1738689042349,-977.1503354,0.0001647,2]
[351654151,1738689042359,-414.9960342,0.00016473,2]
[351654152,1738689042369,-151.0,0.00016475,2]
[351654153,1738689042381,-25108.14032114,0.00016475,2]
[351654154,1738689042390,-396.0,0.00016483,2]
[351654155,1738689042401,-7438.69753278,0.000165,2]
[351654156,1738689042410,-15331.49,0.000165,2]
[351654157,1738689042419,-18150.18,0.000165,2]
[351654158,1738689042429,-151.0,0.000165,2]
[351654159,1738689042439,-1021.79118673,0.00016546,2]
[351654160,1738689042448,-6103.14609675,0.00016565,2]
[351654161,1738689042458,-977.1503354,0.0001657,2]
[351654162,1738689042467,-589.78077645,0.00016573,2]
[351654163,1738689042477,-566.9160785,0.00016573,2]
[351654164,1738689042486,-372.82095085,0.00016573,2]
[351654165,1738689042495,-516.73243931,0.00016573,2]
[351654166,1738689042505,-500.0,0.00016573,2]
[351654167,1738689042515,-500.0,0.00016573,2]
[351654168,1738689042524,-500.0,0.00016573,2]
[351654169,1738689042534,-500.0,0.00016573,2]
[351654170,1738689042543,-267.67779196,0.00016573,2]
[351654171,1738689042553,-502.22195616,0.00016573,2]
[351654172,1738689042562,-500.0,0.00016573,2]
[351654173,1738689042572,-500.0,0.00016573,2]
[351654174,1738689042582,-500.0,0.00016573,2]
[351654175,1738689042591,-500.0,0.00016573,2]
[351654176,1738689042601,-500.0,0.00016573,2]
[351654177,1738689042610,-500.0,0.00016573,2]
[351654178,1738689042620,-500.85333882,0.00016573,2]
[351654179,1738689042631,-270.00476718,0.00016573,2]
[351654180,1738689042640,-500.0,0.00016573,2]
[351654181,1738689042650,-500.31591144,0.00016573,2]
[351654182,1738689042660,-320.64701768,0.00016573,2]
[351654183,1738689042670,-250.44089737,0.00016573,2]
[351654184,1738689042681,-158.50230496,0.00016573,2]
[351654185,1738689042691,-500.0,0.00016573,2]
[351654186,1738689042700,-151.56127829,0.00016573,2]
[351654187,1738689042710,-160.60749607,0.00016573,2]
[351654188,1738689042719,-168.14173551,0.00016573,2]
[351654189,1738689042733,-401.1369453,0.00016573,2]
[351654190,1738689042742,-500.0,0.00016573,2]
[351654191,1738689042753,-500.51914283,0.00016573,2]
[351654192,1738689042767,-187.1618608,0.00016573,2]
[351654193,1738689042776,-164.34828694,0.00016573,2]
[351654194,1738689042787,-402.7589518,0.00016573,2]
[351654195,1738689042798,-151.51650847,0.00016573,2]
[351654196,1738689042808,-500.49421797,0.00016573,2]
[351654197,1738689042818,-168.13777958,0.00016573,2]
[351654198,1738689042828,-180.31469093,0.00016573,2]
[351654199,1738689042839,-500.0,0.00016573,2]
[351654200,1738689042848,-500.41041486,0.00016573,2]
[351654201,1738689042858,-175.71407317,0.00016573,2]
[351654202,1738689042870,-261.13099604,0.00016573,2]
[351654203,1738689042882,-478.11359212,0.00016573,2]
[351654204,1738689042891,-500.0,0.00016573,2]
[351654205,1738689042983,-1025.245,0.00016573,2]
[351654206,1738689043002,-201.840173,0.00016574,2]
[351654207,1738689043011,-500.0,0.00016574,2]
[351654208,1738689043021,-179.90558392,0.00016574,2]
[351654209,1738689043031,-500.0,0.00016574,2]
[351654210,1738689043041,-448.64435382,0.00016574,2]
[351654211,1738689043050,-500.0,0.00016574,2]
[351654212,1738689043060,-160.0,0.00016574,2]
[351654213,1738689043070,-160.0,0.00016574,2]
[351654214,1738689043079,-151.0,0.00016575,2]
[351654215,1738689043089,-151.0,0.00016575,2]
[351654216,1738689043098,-151.0,0.00016575,2]
[351654217,1738689043108,-151.0,0.00016575,2]
[351654218,1738689043118,-250.703377,0.00016575,2]
[351654219,1738689043129,-3394.18,0.00016575,2]
[351654220,1738689043139,-500.0,0.00016575,2]
[351654221,1738689043148,-500.0,0.00016575,2]
[351654223,1738689043157,-500.0,0.00016575,2]
[351654225,1738689043167,-500.0,0.00016575,2]
[351654227,1738689043177,-500.0,0.00016575,2]
[351654228,1738689043187,-500.0,0.00016575,2]
[351654229,1738689043196,-500.0,0.00016575,2]
[351654230,1738689043206,-500.0,0.00016575,2]
[351654232,1738689043216,-247.76915764,0.00016575,2]
[351654233,1738689043225,-500.0,0.00016575,2]
[351654234,1738689043235,-500.0,0.00016575,2]
[351654235,1738689043244,-507.73494904,0.00016575,2]
[351654236,1738689043261,-500.0,0.00016575,2]
[351654237,1738689043271,-500.0,0.00016575,2]
[351654238,1738689043279,-500.0,0.00016575,2]
[351654239,1738689043289,-500.0,0.00016575,2]
[351654240,1738689043299,-553.0469861,0.00016575,2]
[351654241,1738689043308,-500.0,0.00016575,2]
[351654242,1738689043317,-505.00035132,0.00016575,2]
[351654243,1738689043327,-500.0,0.00016575,2]
[351654244,1738689043336,-500.0,0.00016575,2]
[351654245,1738689043346,-500.0,0.00016575,2]
[351654246,1738689043355,-500.0,0.00016575,2]
[351654247,1738689043365,-500.0,0.00016575,2]
[351654248,1738689043377,-500.0,0.00016575,2]
[351654249,1738689043387,-500.0,0.00016575,2]
[351654250,1738689043397,-197.08290386,0.00016575,2]
[351654251,1738689043407,-500.0,0.00016575,2]
[351654252,1738689043417,-500.0,0.00016575,2]
[351654253,1738689043427,-500.0,0.00016575,2]
[351654254,1738689043436,-500.0,0.00016575,2]
[351654255,1738689043446,-376.42416754,0.00016575,2]
[351654256,1738689043456,-500.0,0.00016575,2]
[351654257,1738689043465,-500.0,0.00016575,2]
[351654258,1738689043475,-501.97750427,0.00016575,2]
[351654259,1738689043484,-500.0,0.00016575,2]
[351654260,1738689043494,-500.0,0.00016575,2]
[351654261,1738689043504,-502.38039967,0.00016575,2]
[351654262,1738689043514,-500.0,0.00016575,2]
[351654264,1738689043524,-507.14685443,0.00016575,2]
[351654266,1738689043534,-922.4,0.00016575,2]
[351654267,1738689043543,-500.0,0.00016575,2]
[351654268,1738689043553,-500.0,0.00016575,2]
[351654269,1738689043562,-500.0,0.00016575,2]
[351654270,1738689043571,-500.0,0.00016575,2]
[351654271,1738689043581,-448.2476278,0.00016575,2]
[351654272,1738689043591,-500.0,0.00016575,2]
[351654273,1738689043600,-500.0,0.00016575,2]
[351654274,1738689043609,-500.0,0.00016575,2]
[351654275,1738689043620,-500.0,0.00016575,2]
[351654277,1738689043632,-500.0,0.00016575,2]
[351654278,1738689043641,-500.0,0.00016575,2]
[351654279,1738689043651,-500.0,0.00016575,2]
[351654280,1738689043661,-1217.7,0.00016575,2]
[351654281,1738689043670,-500.0,0.00016575,2]
[351654282,1738689043680,-500.0,0.00016575,2]
[351654283,1738689043690,-500.0,0.00016575,2]
[351654284,1738689043699,-500.0,0.00016575,2]
[351654285,1738689043708,-419.80716015,0.00016575,2]
[351654286,1738689043718,-379.03767898,0.00016575,2]
[351654287,1738689043728,-500.0,0.00016575,2]
[351654288,1738689043737,-500.0,0.00016575,2]
[351654289,1738689043747,-510.13449862,0.00016575,2]
[351654290,1738689043757,-500.0,0.00016575,2]
[351654291,1738689043767,-504.46726706,0.00016575,2]
[351654292,1738689043776,-1324.07,0.00016575,2]
[351654293,1738689043786,-500.0,0.00016575,2]
[351654294,1738689043796,-500.0,0.00016575,2]
[351654295,1738689043806,-500.0,0.00016575,2]
[351654296,1738689043815,-500.0,0.00016575,2]
[351654297,1738689043825,-500.0,0.00016575,2]
[351654298,1738689043835,-500.77059866,0.00016575,2]
[351654299,1738689043844,-500.0,0.00016575,2]
[351654300,1738689043854,-308.5267888,0.00016575,2]
[351654301,1738689043863,-500.0,0.00016575,2]
[351654303,1738689043873,-500.0,0.00016575,2]
[351654305,1738689043888,-500.0,0.00016575,2]
[351654306,1738689043898,-500.0,0.00016575,2]
[351654307,1738689043907,-500.0,0.00016575,2]
[351654308,1738689043917,-507.58336797,0.00016575,2]
[351654309,1738689043929,-234.98057433,0.00016575,2]
[351654310,1738689043938,-500.0,0.00016575,2]
[351654311,1738689043948,-500.0,0.00016575,2]
[351654312,1738689043958,-500.0,0.00016575,2]
[351654313,1738689043967,-500.0,0.00016575,2]
[351654314,1738689043977,-500.0,0.00016575,2]
[351654315,1738689043986,-500.0,0.00016575,2]
[351654316,1738689043995,-219.10377944,0.00016575,2]
[351654317,1738689044005,-300.684998,0.00016575,2]
[351654318,1738689044015,-500.0,0.00016575,2]
[351654319,1738689044025,-500.0,0.00016575,2]
[351654320,1738689044035,-500.0,0.00016575,2]
[351654321,1738689044045,-500.0,0.00016575,2]
[351654322,1738689044054,-500.0,0.00016575,2]
[351654323,1738689044063,-529.88981495,0.00016575,2]
[351654324,1738689044073,-238.40452934,0.00016575,2]
[351654325,1738689044082,-678.28,0.00016575,2]
[351654326,1738689044092,-500.0,0.00016575,2]
[351654327,1738689044101,-411.25646923,0.00016575,2]
[351654328,1738689044110,-500.0,0.00016575,2]
[351654329,1738689044120,-544.81791568,0.00016575,2]
[351654330,1738689044133,-500.0,0.00016575,2]
[351654331,1738689044143,-500.0,0.00016575,2]
[351654332,1738689044152,-500.0,0.00016575,2]
[351654333,1738689044162,-500.0,0.00016575,2]
[351654334,1738689044171,-500.0,0.00016575,2]
[351654335,1738689044181,-500.0,0.00016575,2]
[351654336,1738689044191,-500.0,0.00016575,2]
[351654337,1738689044200,-423.43575747,0.00016575,2]
[351654338,1738689044209,-525.13864355,0.00016575,2]
[351654339,1738689044219,-500.0,0.00016575,2]
[351654340,1738689044228,-500.0,0.00016575,2]
[351654341,1738689044238,-500.0,0.00016575,2]
[351654342,1738689044247,-500.0,0.00016575,2]
[351654343,1738689044257,-500.0,0.00016575,2]
[351654344,1738689044268,-500.0,0.00016575,2]
[351654345,1738689044277,-500.0,0.00016575,2]
[351654346,1738689044287,-500.0,0.00016575,2]
[351654347,1738689044296,-500.0,0.00016575,2]
[351654348,1738689044305,-500.0,0.00016575,2]
[351654349,1738689044315,-500.0,0.00016575,2]
[351654350,1738689044324,-500.0,0.00016575,2]
[351654351,1738689044334,-339.75689561,0.00016575,2]
[351654352,1738689044343,-500.0,0.00016575,2]
[351654353,1738689044353,-1188.82,0.00016575,2]
[351654354,1738689044362,-500.0,0.00016575,2]
[351654355,1738689044373,-500.0,0.00016575,2]
[351654356,1738689044384,-500.0,0.00016575,2]
[351654357,1738689044394,-200.0,0.00016575,2]
[351654358,1738689044403,-500.0,0.00016575,2]
[351654359,1738689044413,-500.0,0.00016575,2]
[351654360,1738689044421,-515.63393805,0.00016575,2]
[351654361,1738689044431,-500.0,0.00016575,2]
[351654362,1738689044441,-500.0,0.00016575,2]
[351654363,1738689044450,-500.0,0.00016575,2]
[351654364,1738689044459,-500.0,0.00016575,2]
[351654365,1738689044468,-500.0,0.00016575,2]
[351654366,1738689044477,-500.0,0.00016575,2]
[351654367,1738689044486,-513.44862881,0.00016575,2]
[351654368,1738689044496,-500.0,0.00016575,2]
[351654369,1738689044506,-500.0,0.00016575,2]
[351654370,1738689044516,-500.0,0.00016575,2]
[351654371,1738689044526,-1016.24,0.00016575,2]
[351654372,1738689044535,-500.0,0.00016575,2]
[351654373,1738689044545,-500.0,0.00016575,2]
[351654374,1738689044554,-500.0,0.00016575,2]
[351654375,1738689044563,-500.0,0.00016575,2]
[351654376,1738689044572,-2754.67,0.00016575,2]
[351654377,1738689044582,-500.0,0.00016575,2]
[351654378,1738689044591,-500.0,0.00016575,2]
[351654379,1738689044600,-552.12,0.00016575,2]
[351654380,1738689044691,-500.0,0.00016575,2]
[351654381,1738689044703,-500.0,0.00016575,2]
[351654382,1738689044713,-505.89,0.00016575,2]
[351654383,1738689044722,-500.0,0.00016575,2]
[351654384,1738689044732,-500.0,0.00016575,2]
[351654385,1738689044741,-500.0,0.00016575,2]
[351654386,1738689044751,-500.0,0.00016575,2]
[351654387,1738689044760,-500.0,0.00016575,2]
[351654388,1738689044770,-500.0,0.00016575,2]
[351654389,1738689044779,-500.0,0.00016575,2]
[351654390,1738689044788,-500.0,0.00016575,2]
[351654391,1738689044797,-402.56008187,0.00016575,2]
[351654392,1738689044807,-500.0,0.00016575,2]
[351654393,1738689044816,-500.0,0.00016575,2]
[351654394,1738689044825,-500.0,0.00016575,2]
[351654395,1738689044835,-500.0,0.00016575,2]
[351654396,1738689044844,-500.0,0.00016575,2]
[351654397,1738689044854,-500.0,0.00016575,2]
[351654398,1738689044863,-500.0,0.00016575,2]
[351654399,1738689044878,-500.0,0.00016575,2]
[351654400,1738689044888,-500.0,0.00016575,2]
[351654401,1738689044897,-555.91465726,0.00016575,2]
[351654402,1738689044907,-571.19,0.00016575,2]
[351654403,1738689044916,-503.93,0.00016575,2]
[351654404,1738689044926,-500.0,0.00016575,2]
[351654405,1738689044935,-500.0,0.00016575,2]
[351654406,1738689044944,-500.0,0.00016575,2]
[351654407,1738689044954,-500.0,0.00016575,2]
[351654408,1738689044965,-500.0,0.00016575,2]
[351654409,1738689044974,-500.0,0.00016575,2]
[351654410,1738689044983,-500.0,0.00016575,2]
[351654411,1738689044993,-504.09521643,0.00016575,2]
[351654412,1738689045003,-500.0,0.00016575,2]
[351654413,1738689045012,-500.0,0.00016575,2]
[351654414,1738689045022,-500.0,0.00016575,2]
[351654415,1738689045031,-500.0,0.00016575,2]
[351654416,1738689045040,-500.0,0.00016575,2]
[351654417,1738689045050,-500.0,0.00016575,2]
[351654418,1738689045059,-500.0,0.00016575,2]
[351654419,1738689045068,-826.68,0.00016575,2]
[351654420,1738689045077,-500.0,0.00016575,2]
[351654421,1738689045087,-971.73,0.00016575,2]
[351654422,1738689045096,-494.39543371,0.00016575,2]
[351654423,1738689045106,-500.0,0.00016575,2]
[351654424,1738689045115,-500.0,0.00016575,2]
[351654425,1738689045126,-500.0,0.00016575,2]
[351654426,1738689045136,-500.0,0.00016575,2]
[351654427,1738689045146,-500.0,0.00016575,2]
[351654428,1738689045155,-500.0,0.00016575,2]
[351654429,1738689045164,-500.0,0.00016575,2]
[351654430,1738689045174,-500.0,0.00016575,2]
[351654431,1738689045184,-1053.69,0.00016575,2]
[351654432,1738689045194,-500.0,0.00016575,2]
[351654433,1738689045204,-500.0,0.00016575,2]
[351654434,1738689045213,-500.0,0.00016575,2]
[351654435,1738689045223,-500.0,0.00016575,2]
[351654436,1738689045232,-500.0,0.00016575,2]
[351654437,1738689045242,-500.0,0.00016575,2]
[351654438,1738689045251,-500.0,0.00016575,2]
[351654439,1738689045260,-500.0,0.00016575,2]
[351654440,1738689045269,-742.65,0.00016575,2]
[351654441,1738689045279,-500.0,0.00016575,2]
[351654442,1738689045288,-500.0,0.00016575,2]
[351654443,1738689045298,-500.0,0.00016575,2]
[351654444,1738689045307,-510.0,0.00016575,2]
[351654445,1738689045316,-500.0,0.00016575,2]
[351654446,1738689045325,-500.0,0.00016575,2]
[351654447,1738689045334,-500.0,0.00016575,2]
[351654448,1738689045343,-500.0,0.00016575,2]
[351654449,1738689045352,-500.0,0.00016575,2]
[351654450,1738689045362,-525.23049073,0.00016575,2]
[351654451,1738689045371,-500.0,0.00016575,2]
[351654452,1738689045382,-500.0,0.00016575,2]
[351654453,1738689045391,-500.0,0.00016575,2]
[351654454,1738689045400,-500.0,0.00016575,2]
[351654455,1738689045410,-500.0,0.00016575,2]
[351654456,1738689045419,-500.0,0.00016575,2]
[351654457,1738689045428,-500.0,0.00016575,2]
[351654458,1738689045438,-500.0,0.00016575,2]
[351654459,1738689045447,-500.0,0.00016575,2]
[351654460,1738689045457,-500.0,0.00016575,2]
[351654461,1738689045466,-500.0,0.00016575,2]
[351654462,1738689045476,-1297.36,0.00016575,2]
[351654463,1738689045485,-1440.51,0.00016575,2]
[351654464,1738689045494,-252.48630424,0.00016575,2]
[351654465,1738689045504,-500.0,0.00016575,2]
[351654466,1738689045513,-1157.43,0.00016575,2]
[351654467,1738689045522,-500.0,0.00016575,2]
[351654468,1738689045532,-304.8958966,0.00016575,2]
[351654469,1738689045542,-500.0,0.00016575,2]
[351654470,1738689045551,-500.0,0.00016575,2]
[351654471,1738689045562,-500.0,0.00016575,2]
[351654472,1738689045571,-515.68967748,0.00016575,2]
[351654473,1738689045581,-500.0,0.00016575,2]
[351654474,1738689045590,-565.8916154,0.00016575,2]
[351654475,1738689045599,-500.0,0.00016575,2]
[351654476,1738689045609,-505.14111392,0.00016575,2]
[351654477,1738689045618,-503.92,0.00016575,2]
[351654478,1738689045629,-500.0,0.00016575,2]
[351654479,1738689045638,-500.0,0.00016575,2]
[351654480,1738689045648,-500.0,0.00016575,2]
[351654481,1738689045657,-1694.72,0.00016575,2]
[351654482,1738689045668,-500.0,0.00016575,2]
[351654483,1738689045677,-500.0,0.00016575,2]
[351654484,1738689045687,-2537.63,0.00016575,2]
[351654485,1738689045697,-500.0,0.00016575,2]
[351654486,1738689045708,-500.0,0.00016575,2]
[351654487,1738689045718,-500.0,0.00016575,2]
[351654488,1738689045728,-1511.89,0.00016575,2]
[351654489,1738689045738,-500.0,0.00016575,2]
[351654490,1738689045748,-500.0,0.00016575,2]
[351654491,1738689045757,-500.0,0.00016575,2]
[351654492,1738689045767,-500.0,0.00016575,2]
[351654493,1738689045776,-500.0,0.00016575,2]
[351654494,1738689045786,-1184.41,0.00016575,2]
[351654495,1738689045795,-500.0,0.00016575,2]
[351654496,1738689045805,-500.0,0.00016575,2]
[351654497,1738689045814,-500.0,0.00016575,2]
[351654498,1738689045824,-500.0,0.00016575,2]
[351654499,1738689045833,-1202.76,0.00016575,2]
[351654500,1738689045843,-500.0,0.00016575,2]